[Event "*** Titled Tuesday Blitz"]
[Site "Chess.com"]
[Date "2020.03.03"]
[Round "4"]
[White "earling8018"]
[Black "Sjakkerntobi"]
[Result "0-1"]
[WhiteElo "2005"]
[BlackElo "2259"]
[TimeControl "180+1"]
[EndTime "9:40:24 PST"]
[Termination "Sjakkerntobi won by resignation"]

1. d4 {[%clk 0:03:00.9]} 1... Nf6 {[%clk 0:02:59.1]} 2. c4 {[%clk 0:02:59.5]}
2... e6 {[%clk 0:02:59.3]} 3. Nf3 {[%clk 0:02:58.2]} 3... Bb4+ {[%clk
0:02:59.8]} 4. Bd2 {[%clk 0:02:57.6]} 4... Qe7 {[%clk 0:02:59.8]} 5. g3 {[%clk
0:02:56.5]} 5... O-O {[%clk 0:03:00.2]} 6. Nc3 {[%clk 0:02:56.3]} 6... Bxc3
{[%clk 0:02:59.6]} 7. Bxc3 {[%clk 0:02:55.9]} 7... Ne4 {[%clk 0:03:00.5]} 8. Rc1
{[%clk 0:02:50.2]} 8... Nxc3 {[%clk 0:03:00.7]} 9. Rxc3 {[%clk 0:02:49.5]} 9...
c5 {[%clk 0:03:01.6]} 10. d5 {[%clk 0:02:32.2]} 10... e5 {[%clk 0:03:01.5]} 11.
Bg2 {[%clk 0:02:28.9]} 11... d6 {[%clk 0:03:01.9]} 12. O-O {[%clk 0:02:27.8]}
12... f5 {[%clk 0:03:02.4]} 13. e4 {[%clk 0:02:02]} 13... f4 {[%clk 0:03:01.9]}
14. h3 {[%clk 0:01:54.3]} 14... Nd7 {[%clk 0:02:59.5]} 15. Kh2 {[%clk
0:01:53.9]} 15... Nf6 {[%clk 0:02:49.7]} 16. Ng5 {[%clk 0:01:44.9]} 16... h6
{[%clk 0:02:48.3]} 17. Ne6 {[%clk 0:01:44.5]} 17... Bxe6 {[%clk 0:02:48.3]} 18.
dxe6 {[%clk 0:01:44.9]} 18... Qxe6 {[%clk 0:02:49.2]} 19. Rd3 {[%clk 0:01:43.9]}
19... Rad8 {[%clk 0:02:48.5]} 20. Qb3 {[%clk 0:01:41.1]} 20... b6 {[%clk
0:02:48.2]} 21. Rfd1 {[%clk 0:01:41]} 21... fxg3+ {[%clk 0:02:46.6]} 22. fxg3
{[%clk 0:01:40.1]} 22... Kh8 {[%clk 0:02:32.8]} 23. Qc3 {[%clk 0:01:39.7]} 23...
Ng8 {[%clk 0:02:32]} 24. b3 {[%clk 0:01:36.4]} 24... Ne7 {[%clk 0:02:31.7]} 25.
Qd2 {[%clk 0:01:34.4]} 25... Nc8 {[%clk 0:02:25.3]} 26. Bf3 {[%clk 0:01:34.2]}
26... Qf6 {[%clk 0:02:19.7]} 27. Kg2 {[%clk 0:01:17.5]} 27... Ne7 {[%clk
0:02:18]} 28. Bg4 {[%clk 0:01:12.8]} 28... Nc6 {[%clk 0:02:14.4]} 29. Rf3 {[%clk
0:01:01.9]} 29... Qe7 {[%clk 0:02:12.1]} 30. Qd5 {[%clk 0:00:53.1]} 30... Nd4
{[%clk 0:02:11.2]} 31. Rxf8+ {[%clk 0:00:44.3]} 31... Rxf8 {[%clk 0:02:12.1]}
32. h4 {[%clk 0:00:23.8]} 32... Qf6 {[%clk 0:02:11.4]} 33. Kh3 {[%clk
0:00:23.6]} 33... g6 {[%clk 0:02:03.8]} 34. h5 {[%clk 0:00:19.2]} 34... gxh5
{[%clk 0:02:00.6]} 35. Bxh5 {[%clk 0:00:19.4]} 35... Qg5 {[%clk 0:01:54.4]} 36.
Qxd6 {[%clk 0:00:05.9]} 36... Qxh5+ {[%clk 0:01:54.3]} 0-1

[Event "*** Titled Tuesday Blitz"]
[Site "Chess.com"]
[Date "2020.03.03"]
[Round "4"]
[White "Quiet_Desperation"]
[Black "FedaMaster"]
[Result "0-1"]
[WhiteElo "2048"]
[BlackElo "2425"]
[TimeControl "180+1"]
[EndTime "9:40:25 PST"]
[Termination "FedaMaster won by resignation"]

1. e4 {[%clk 0:03:00.9]} 1... c5 {[%clk 0:02:58.5]} 2. Nf3 {[%clk 0:02:57.2]}
2... d6 {[%clk 0:02:58.5]} 3. d4 {[%clk 0:02:56.8]} 3... cxd4 {[%clk 0:02:58.7]}
4. Nxd4 {[%clk 0:02:57.7]} 4... Nf6 {[%clk 0:02:58.4]} 5. Nc3 {[%clk 0:02:57.9]}
5... g6 {[%clk 0:02:57.8]} 6. Be3 {[%clk 0:02:57.1]} 6... Bg7 {[%clk 0:02:57.7]}
7. f3 {[%clk 0:02:55.7]} 7... O-O {[%clk 0:02:56.5]} 8. Qd2 {[%clk 0:02:55.9]}
8... Nc6 {[%clk 0:02:56.6]} 9. Bc4 {[%clk 0:02:55.8]} 9... Nd7 {[%clk
0:02:47.7]} 10. O-O {[%clk 0:02:49.5]} 10... Nb6 {[%clk 0:02:46.1]} 11. Bb3
{[%clk 0:02:48.8]} 11... Na5 {[%clk 0:02:45.8]} 12. Qe2 {[%clk 0:02:42.1]} 12...
a6 {[%clk 0:02:40.7]} 13. Rfd1 {[%clk 0:02:40.3]} 13... e5 {[%clk 0:02:40.2]}
14. Ndb5 {[%clk 0:02:29.2]} 14... axb5 {[%clk 0:02:37.4]} 15. Nxb5 {[%clk
0:02:28.9]} 15... Nxb3 {[%clk 0:02:35.7]} 16. cxb3 {[%clk 0:02:22.3]} 16... d5
{[%clk 0:02:28.7]} 17. exd5 {[%clk 0:02:18.4]} 17... Nxd5 {[%clk 0:02:28.3]} 18.
Bc5 {[%clk 0:02:06.6]} 18... Be6 {[%clk 0:02:16.7]} 19. Bxf8 {[%clk 0:02:02.6]}
19... Qxf8 {[%clk 0:02:16.7]} 20. Kh1 {[%clk 0:01:55.9]} 20... Nf4 {[%clk
0:02:09.2]} 21. Qf2 {[%clk 0:01:48.8]} 21... h5 {[%clk 0:02:00.6]} 22. Nc7
{[%clk 0:01:44.9]} 22... Rc8 {[%clk 0:01:53.1]} 23. Nxe6 {[%clk 0:01:41.4]}
23... Nxe6 {[%clk 0:01:54]} 24. Rac1 {[%clk 0:01:35.6]} 24... Nd4 {[%clk
0:01:47.6]} 25. f4 {[%clk 0:01:18.1]} 25... Rxc1 {[%clk 0:01:42.1]} 26. Rxc1
{[%clk 0:01:11.9]} 26... exf4 {[%clk 0:01:42.7]} 27. Rd1 {[%clk 0:00:55.4]}
27... Qd6 {[%clk 0:01:40.5]} 28. Qf3 {[%clk 0:00:49.5]} 28... Qe5 {[%clk
0:01:20]} 29. Qxb7 {[%clk 0:00:41.4]} 29... Qe2 {[%clk 0:01:19.8]} 30. Rg1
{[%clk 0:00:29.4]} 30... f3 {[%clk 0:01:18.8]} 31. gxf3 {[%clk 0:00:21.7]} 31...
Nxf3 {[%clk 0:01:18.7]} 0-1

[Event "*** Titled Tuesday Blitz"]
[Site "Chess.com"]
[Date "2020.03.03"]
[Round "4"]
[White "agus_k"]
[Black "ahkashefi2800"]
[Result "1-0"]
[WhiteElo "2633"]
[BlackElo "2106"]
[TimeControl "180+1"]
[EndTime "9:40:26 PST"]
[Termination "agus_k won by resignation"]

1. d4 {[%clk 0:03:00.9]} 1... d5 {[%clk 0:03:00.1]} 2. Nf3 {[%clk 0:02:59.4]}
2... Nf6 {[%clk 0:03:00.1]} 3. g3 {[%clk 0:02:58.3]} 3... b5 {[%clk 0:02:59.4]}
4. Bg2 {[%clk 0:02:59.2]} 4... e6 {[%clk 0:02:42.4]} 5. O-O {[%clk 0:03:00.1]}
5... Bb7 {[%clk 0:02:39.5]} 6. c3 {[%clk 0:02:57]} 6... Nbd7 {[%clk 0:02:32.3]}
7. a4 {[%clk 0:02:56.6]} 7... b4 {[%clk 0:02:29]} 8. Qc2 {[%clk 0:02:51.1]} 8...
a5 {[%clk 0:02:20.4]} 9. cxb4 {[%clk 0:02:50.1]} 9... Bxb4 {[%clk 0:02:19.5]}
10. Bf4 {[%clk 0:02:49.1]} 10... c5 {[%clk 0:02:17.4]} 11. Nc3 {[%clk
0:02:46.8]} 11... Ba6 {[%clk 0:02:06.5]} 12. Nb5 {[%clk 0:02:46.3]} 12... Bxb5
{[%clk 0:02:04.5]} 13. axb5 {[%clk 0:02:46]} 13... c4 {[%clk 0:01:59.3]} 14. Nd2
{[%clk 0:02:39]} 14... O-O {[%clk 0:01:57.6]} 15. e4 {[%clk 0:02:38.7]} 15...
Bxd2 {[%clk 0:01:55.1]} 16. Bxd2 {[%clk 0:02:35.7]} 16... Nxe4 {[%clk
0:01:53.7]} 17. Bxe4 {[%clk 0:02:34.2]} 17... dxe4 {[%clk 0:01:54.6]} 18. Qxe4
{[%clk 0:02:35.1]} 18... Nf6 {[%clk 0:01:55.3]} 19. Qc6 {[%clk 0:02:34.9]} 19...
Qd5 {[%clk 0:01:49.9]} 20. Rxa5 {[%clk 0:02:30.2]} 20... Rxa5 {[%clk 0:01:46.3]}
21. Bxa5 {[%clk 0:02:31.1]} 21... Qxd4 {[%clk 0:01:42.4]} 22. Bc3 {[%clk
0:02:30]} 22... Qd5 {[%clk 0:01:38.8]} 23. Bxf6 {[%clk 0:02:29.9]} 23... gxf6
{[%clk 0:01:38.4]} 24. Rc1 {[%clk 0:02:29.3]} 24... Ra8 {[%clk 0:01:27.1]} 25.
Qxc4 {[%clk 0:02:25.9]} 25... Qxc4 {[%clk 0:01:20.1]} 26. Rxc4 {[%clk
0:02:26.8]} 26... Rb8 {[%clk 0:01:20.4]} 27. Rb4 {[%clk 0:02:25.9]} 27... Kf8
{[%clk 0:01:20.7]} 28. b6 {[%clk 0:02:23.3]} 28... Rb7 {[%clk 0:01:19.3]} 29.
Kg2 {[%clk 0:02:22.3]} 29... Ke7 {[%clk 0:01:19.8]} 30. Kh3 {[%clk 0:02:22.8]}
30... Kd6 {[%clk 0:01:20.4]} 31. Kh4 {[%clk 0:02:23.2]} 31... Kc5 {[%clk
0:01:18.9]} 32. Rb3 {[%clk 0:02:23.5]} 32... Kc4 {[%clk 0:01:19.2]} 33. Rc3+
{[%clk 0:02:23.5]} 33... Kd5 {[%clk 0:01:18.8]} 34. Rb3 {[%clk 0:02:21.8]} 34...
Kc4 {[%clk 0:01:19]} 35. Rf3 {[%clk 0:02:21.9]} 35... f5 {[%clk 0:01:17.6]} 36.
Rc3+ {[%clk 0:02:19.6]} 36... Kd5 {[%clk 0:01:17.6]} 37. Rc7 {[%clk 0:02:18.8]}
37... Rxb6 {[%clk 0:01:17.6]} 38. Rxf7 {[%clk 0:02:19.2]} 38... Rxb2 {[%clk
0:01:17.9]} 39. Kg5 {[%clk 0:02:13.9]} 39... Rxf2 {[%clk 0:01:17.2]} 40. Rxh7
{[%clk 0:02:14]} 40... e5 {[%clk 0:01:15.6]} 41. h4 {[%clk 0:02:12.6]} 41... e4
{[%clk 0:01:13.7]} 42. h5 {[%clk 0:02:11.9]} 42... Ke6 {[%clk 0:01:09.5]} 43.
Rh8 {[%clk 0:02:08.7]} 43... Kf7 {[%clk 0:01:07.8]} 44. h6 {[%clk 0:02:08.9]}
44... e3 {[%clk 0:01:06.6]} 45. Rh7+ {[%clk 0:02:07.2]} 45... Kg8 {[%clk
0:01:02.2]} 46. Re7 {[%clk 0:02:05.1]} 46... Rf3 {[%clk 0:00:38.9]} 47. h7+
{[%clk 0:02:03.2]} 47... Kf8 {[%clk 0:00:33.6]} 48. Kf6 {[%clk 0:02:01.1]} 1-0

[Event "*** Titled Tuesday Blitz"]
[Site "Chess.com"]
[Date "2020.03.03"]
[Round "4"]
[White "vladislavkovalev"]
[Black "alishersuleymenov"]
[Result "1-0"]
[WhiteElo "2893"]
[BlackElo "2767"]
[TimeControl "180+1"]
[EndTime "9:40:35 PST"]
[Termination "vladislavkovalev won by resignation"]

1. e4 {[%clk 0:03:00.9]} 1... c5 {[%clk 0:02:50.6]} 2. Be2 {[%clk 0:02:58.1]}
2... e6 {[%clk 0:02:50.5]} 3. d3 {[%clk 0:02:57.6]} 3... d5 {[%clk 0:02:51.2]}
4. f4 {[%clk 0:02:58.1]} 4... Nc6 {[%clk 0:02:51.2]} 5. Nf3 {[%clk 0:02:58.3]}
5... g6 {[%clk 0:02:51.5]} 6. c3 {[%clk 0:02:56.8]} 6... Bg7 {[%clk 0:02:51.8]}
7. Be3 {[%clk 0:02:55.4]} 7... b6 {[%clk 0:02:48.1]} 8. e5 {[%clk 0:02:52.2]}
8... Nge7 {[%clk 0:02:47.3]} 9. d4 {[%clk 0:02:52.4]} 9... c4 {[%clk 0:02:43.6]}
10. O-O {[%clk 0:02:38.1]} 10... O-O {[%clk 0:02:40.5]} 11. g4 {[%clk
0:02:35.8]} 11... b5 {[%clk 0:02:36.9]} 12. a3 {[%clk 0:02:35.3]} 12... a5
{[%clk 0:02:36.5]} 13. Qe1 {[%clk 0:02:34.3]} 13... f5 {[%clk 0:02:31.5]} 14.
exf6 {[%clk 0:02:34.1]} 14... Bxf6 {[%clk 0:02:31.6]} 15. Nbd2 {[%clk
0:02:33.2]} 15... Rb8 {[%clk 0:02:30.5]} 16. Ne5 {[%clk 0:02:33.4]} 16... b4
{[%clk 0:02:30.8]} 17. axb4 {[%clk 0:02:34.3]} 17... axb4 {[%clk 0:02:31.7]} 18.
Ndf3 {[%clk 0:02:21.1]} 18... bxc3 {[%clk 0:02:30.2]} 19. bxc3 {[%clk 0:02:22]}
19... Bd7 {[%clk 0:02:21.3]} 20. Bd1 {[%clk 0:02:19.7]} 20... Nc8 {[%clk
0:02:20]} 21. Bc2 {[%clk 0:02:07.6]} 21... Nd6 {[%clk 0:02:17.9]} 22. Nxc6
{[%clk 0:02:06.3]} 22... Bxc6 {[%clk 0:02:17.3]} 23. Ne5 {[%clk 0:02:07]} 23...
Be8 {[%clk 0:02:15.5]} 24. Ra6 {[%clk 0:01:59.2]} 24... Rb6 {[%clk 0:02:14.6]}
25. Qa1 {[%clk 0:01:59]} 25... Rxa6 {[%clk 0:02:14.8]} 26. Qxa6 {[%clk
0:01:59.9]} 26... Qe7 {[%clk 0:02:12.9]} 27. Bc1 {[%clk 0:01:56.8]} 27... Nb5
{[%clk 0:02:06.7]} 28. Bd2 {[%clk 0:01:19.5]} 28... Bxe5 {[%clk 0:01:09.9]} 29.
fxe5 {[%clk 0:01:16.4]} 29... Rxf1+ {[%clk 0:01:10.8]} 30. Kxf1 {[%clk
0:01:17.3]} 30... Kg7 {[%clk 0:01:11.7]} 31. Kg2 {[%clk 0:00:59.6]} 31... Bd7
{[%clk 0:01:03.8]} 32. Qb7 {[%clk 0:00:54.8]} 32... h6 {[%clk 0:01:00.9]} 33.
Ba4 {[%clk 0:00:49.6]} 1-0

[Event "*** Titled Tuesday Blitz"]
[Site "Chess.com"]
[Date "2020.03.03"]
[Round "4"]
[White "TST2014"]
[Black "GMKrikor"]
[Result "0-1"]
[WhiteElo "2583"]
[BlackElo "2842"]
[TimeControl "180+1"]
[EndTime "9:40:35 PST"]
[Termination "GMKrikor won on time"]

1. d4 {[%clk 0:03:00.9]} 1... Nf6 {[%clk 0:03:00.1]} 2. c4 {[%clk 0:03:00.7]}
2... e6 {[%clk 0:03:00.7]} 3. Nf3 {[%clk 0:03:00.2]} 3... d5 {[%clk 0:03:01]} 4.
Nc3 {[%clk 0:02:59.5]} 4... h6 {[%clk 0:03:01.1]} 5. Bf4 {[%clk 0:02:52.7]} 5...
Bd6 {[%clk 0:03:00.9]} 6. e3 {[%clk 0:02:51.1]} 6... Bxf4 {[%clk 0:02:59.4]} 7.
exf4 {[%clk 0:02:51.3]} 7... dxc4 {[%clk 0:02:54.4]} 8. Bxc4 {[%clk 0:02:50.4]}
8... O-O {[%clk 0:02:53.8]} 9. O-O {[%clk 0:02:47.8]} 9... Nbd7 {[%clk
0:02:48.8]} 10. Qe2 {[%clk 0:02:39.8]} 10... Nb6 {[%clk 0:02:48.4]} 11. Bb3
{[%clk 0:02:32.4]} 11... Nbd5 {[%clk 0:02:48.5]} 12. g3 {[%clk 0:02:31.3]} 12...
b6 {[%clk 0:02:49.1]} 13. Ne5 {[%clk 0:02:26.8]} 13... Bb7 {[%clk 0:02:49]} 14.
Rac1 {[%clk 0:02:23]} 14... a6 {[%clk 0:02:45.3]} 15. Rfd1 {[%clk 0:02:20.5]}
15... Qd6 {[%clk 0:02:44.5]} 16. Nxd5 {[%clk 0:02:14.4]} 16... Nxd5 {[%clk
0:02:41.3]} 17. Qh5 {[%clk 0:02:05.4]} 17... Nf6 {[%clk 0:02:34.2]} 18. Qe2
{[%clk 0:01:58.3]} 18... Rac8 {[%clk 0:02:25.9]} 19. a3 {[%clk 0:01:53.1]} 19...
g6 {[%clk 0:02:00.5]} 20. Qc2 {[%clk 0:01:43.7]} 20... Kg7 {[%clk 0:01:57.5]}
21. Ba2 {[%clk 0:01:42.3]} 21... Rfd8 {[%clk 0:01:53.9]} 22. Nc6 {[%clk
0:01:36.6]} 22... Rd7 {[%clk 0:01:50.8]} 23. b4 {[%clk 0:01:23.3]} 23... h5
{[%clk 0:01:48]} 24. h4 {[%clk 0:01:21.6]} 24... Nd5 {[%clk 0:01:45.7]} 25. Re1
{[%clk 0:01:13.1]} 25... Nxf4 {[%clk 0:01:14.9]} 0-1

[Event "*** Titled Tuesday Blitz"]
[Site "Chess.com"]
[Date "2020.03.03"]
[Round "4"]
[White "sganerdene"]
[Black "Region_07"]
[Result "1-0"]
[WhiteElo "2694"]
[BlackElo "2404"]
[TimeControl "180+1"]
[EndTime "9:40:39 PST"]
[Termination "sganerdene won by resignation"]

1. e4 {[%clk 0:03:00.9]} 1... Nc6 {[%clk 0:02:58.4]} 2. Nf3 {[%clk 0:03:00.1]}
2... f5 {[%clk 0:02:55.2]} 3. exf5 {[%clk 0:02:58.8]} 3... d5 {[%clk 0:02:55.6]}
4. d4 {[%clk 0:02:58.1]} 4... Bxf5 {[%clk 0:02:55.3]} 5. Bb5 {[%clk 0:02:58.1]}
5... Qd6 {[%clk 0:02:51.3]} 6. Ne5 {[%clk 0:02:56]} 6... Nf6 {[%clk 0:02:50.6]}
7. c3 {[%clk 0:02:47.6]} 7... Nd7 {[%clk 0:02:40.5]} 8. Bf4 {[%clk 0:02:37.7]}
8... Ndxe5 {[%clk 0:02:39.5]} 9. Bxe5 {[%clk 0:02:37.6]} 9... Qg6 {[%clk
0:02:39.3]} 10. O-O {[%clk 0:02:33.6]} 10... Bc2 {[%clk 0:02:28]} 11. Qe2 {[%clk
0:02:28.1]} 11... e6 {[%clk 0:02:11.6]} 12. Bxc7 {[%clk 0:02:19.4]} 12... Rc8
{[%clk 0:02:07.5]} 13. Bg3 {[%clk 0:02:17.7]} 13... Be7 {[%clk 0:02:05.9]} 14.
Re1 {[%clk 0:02:17.1]} 14... Bf5 {[%clk 0:02:03.5]} 15. Nd2 {[%clk 0:02:13.8]}
15... O-O {[%clk 0:02:02.3]} 16. Nf3 {[%clk 0:02:03.5]} 16... Bf6 {[%clk
0:02:01.7]} 17. Bxc6 {[%clk 0:01:56.2]} 17... Rxc6 {[%clk 0:01:58.4]} 18. Ne5
{[%clk 0:01:56.4]} 18... Bxe5 {[%clk 0:01:57.9]} 19. Qxe5 {[%clk 0:01:56.4]}
19... h5 {[%clk 0:01:51.1]} 20. f3 {[%clk 0:01:55.4]} 20... b5 {[%clk
0:01:37.8]} 21. a3 {[%clk 0:01:53]} 21... a5 {[%clk 0:01:37.2]} 22. Re3 {[%clk
0:01:30.2]} 22... Bd3 {[%clk 0:01:22.3]} 23. Rae1 {[%clk 0:01:25.5]} 23... Kh7
{[%clk 0:01:08.5]} 24. Bh4 {[%clk 0:01:24.8]} 24... b4 {[%clk 0:00:58.9]} 25.
axb4 {[%clk 0:01:24]} 25... axb4 {[%clk 0:00:59.8]} 26. Qg3 {[%clk 0:01:23.5]}
26... Qxg3 {[%clk 0:00:47.7]} 27. hxg3 {[%clk 0:01:18.2]} 27... bxc3 {[%clk
0:00:13]} 28. Rxd3 {[%clk 0:01:11.6]} 28... cxb2 {[%clk 0:00:12.9]} 29. Rb3
{[%clk 0:01:11.4]} 29... Rc1 {[%clk 0:00:12.1]} 30. Kf1 {[%clk 0:01:11.6]} 30...
Rfc8 {[%clk 0:00:10.8]} 31. Rxb2 {[%clk 0:01:11.4]} 1-0

[Event "*** Titled Tuesday Blitz"]
[Site "Chess.com"]
[Date "2020.03.03"]
[Round "4"]
[White "malandragem"]
[Black "bugbug01052018"]
[Result "1-0"]
[WhiteElo "2577"]
[BlackElo "2271"]
[TimeControl "180+1"]
[EndTime "9:40:41 PST"]
[Termination "malandragem won by resignation"]

1. e4 {[%clk 0:03:00.9]} 1... c5 {[%clk 0:02:59.4]} 2. Nc3 {[%clk 0:03:01.3]}
2... Nc6 {[%clk 0:02:59.1]} 3. g3 {[%clk 0:03:01.5]} 3... e5 {[%clk 0:02:59.2]}
4. Bg2 {[%clk 0:03:00.9]} 4... d6 {[%clk 0:02:59.4]} 5. Nd5 {[%clk 0:02:56.8]}
5... Nf6 {[%clk 0:02:59.1]} 6. d3 {[%clk 0:02:49.8]} 6... Nxd5 {[%clk
0:02:58.5]} 7. exd5 {[%clk 0:02:50]} 7... Nd4 {[%clk 0:02:56]} 8. c3 {[%clk
0:02:48.9]} 8... Nf5 {[%clk 0:02:54.9]} 9. Nf3 {[%clk 0:02:46.1]} 9... g6 {[%clk
0:02:54.4]} 10. O-O {[%clk 0:02:46.5]} 10... Bg7 {[%clk 0:02:54.4]} 11. Nd2
{[%clk 0:02:44.3]} 11... O-O {[%clk 0:02:53.9]} 12. a4 {[%clk 0:02:39.9]} 12...
Bd7 {[%clk 0:02:48.1]} 13. Re1 {[%clk 0:02:36.3]} 13... h5 {[%clk 0:02:43.4]}
14. Nc4 {[%clk 0:02:35]} 14... Qc7 {[%clk 0:02:39.9]} 15. h3 {[%clk 0:02:25.3]}
15... b6 {[%clk 0:02:37.6]} 16. b3 {[%clk 0:02:25.5]} 16... a6 {[%clk
0:02:37.6]} 17. a5 {[%clk 0:02:23.1]} 17... b5 {[%clk 0:02:37.9]} 18. Nb6 {[%clk
0:02:22.9]} 18... Rae8 {[%clk 0:02:32.8]} 19. Rb1 {[%clk 0:02:18]} 19... Kh7
{[%clk 0:02:28.4]} 20. Bd2 {[%clk 0:02:16.6]} 20... Nh6 {[%clk 0:02:26.9]} 21.
b4 {[%clk 0:02:15.5]} 21... Bf5 {[%clk 0:02:25.3]} 22. bxc5 {[%clk 0:02:08.2]}
22... Qxc5 {[%clk 0:02:24.5]} 23. Rc1 {[%clk 0:02:05.3]} 23... Qa3 {[%clk
0:02:18.6]} 24. c4 {[%clk 0:02:03.8]} 24... Qxd3 {[%clk 0:02:14.6]} 25. Re3
{[%clk 0:01:42.1]} 25... Qd4 {[%clk 0:02:12.1]} 26. cxb5 {[%clk 0:01:42.6]}
26... axb5 {[%clk 0:02:11.8]} 27. Qe1 {[%clk 0:01:34]} 27... Rb8 {[%clk
0:02:05.2]} 28. Bc3 {[%clk 0:01:32.5]} 28... Qc5 {[%clk 0:01:13.8]} 29. Bb2
{[%clk 0:01:32.6]} 29... Bc2 {[%clk 0:01:00.9]} 30. Rc3 {[%clk 0:01:32.8]} 30...
Qb4 {[%clk 0:00:56.4]} 31. R3xc2 {[%clk 0:01:33.2]} 31... Qxe1+ {[%clk
0:00:53.7]} 32. Rxe1 {[%clk 0:01:34.1]} 32... Nf5 {[%clk 0:00:50.4]} 33. Rc6
{[%clk 0:01:34.2]} 33... Rfd8 {[%clk 0:00:48.6]} 34. a6 {[%clk 0:01:32.2]} 34...
Ne7 {[%clk 0:00:46.9]} 35. a7 {[%clk 0:01:21.4]} 35... Nxc6 {[%clk 0:00:38.3]}
36. dxc6 {[%clk 0:01:22.3]} 36... Rxb6 {[%clk 0:00:34.2]} 37. c7 {[%clk
0:01:22.4]} 37... Rc8 {[%clk 0:00:27.8]} 38. a8=Q {[%clk 0:01:15]} 38... Rxc7
{[%clk 0:00:23.9]} 39. Qa5 {[%clk 0:01:12.7]} 1-0

[Event "*** Titled Tuesday Blitz"]
[Site "Chess.com"]
[Date "2020.03.03"]
[Round "4"]
[White "MokshAD1603"]
[Black "Komissarov_alex"]
[Result "1-0"]
[WhiteElo "2166"]
[BlackElo "1765"]
[TimeControl "180+1"]
[EndTime "9:40:59 PST"]
[Termination "MokshAD1603 won by checkmate"]

1. d4 {[%clk 0:03:00.9]} 1... Nf6 {[%clk 0:02:53.8]} 2. c4 {[%clk 0:03:00.6]}
2... e5 {[%clk 0:02:52.1]} 3. dxe5 {[%clk 0:03:00.3]} 3... Ne4 {[%clk
0:02:51.5]} 4. Nf3 {[%clk 0:02:56.5]} 4... Nc6 {[%clk 0:02:48.6]} 5. Nbd2 {[%clk
0:02:52.4]} 5... Bb4 {[%clk 0:02:45.7]} 6. a3 {[%clk 0:02:50.7]} 6... Bxd2+
{[%clk 0:02:44.1]} 7. Bxd2 {[%clk 0:02:51.6]} 7... Nxd2 {[%clk 0:02:42.6]} 8.
Qxd2 {[%clk 0:02:51.3]} 8... Qe7 {[%clk 0:02:42.2]} 9. Qf4 {[%clk 0:02:43.7]}
9... b6 {[%clk 0:02:39.1]} 10. e3 {[%clk 0:02:38.7]} 10... Bb7 {[%clk
0:02:36.2]} 11. O-O-O {[%clk 0:02:16.4]} 11... O-O-O {[%clk 0:02:28.6]} 12. h4
{[%clk 0:02:14.1]} 12... Rhe8 {[%clk 0:02:08.3]} 13. Rh3 {[%clk 0:02:00.6]}
13... Nxe5 {[%clk 0:02:03.7]} 14. Nd4 {[%clk 0:01:40]} 14... Ng6 {[%clk
0:01:48.7]} 15. Qh2 {[%clk 0:01:35.3]} 15... Be4 {[%clk 0:01:38.9]} 16. h5
{[%clk 0:01:22.7]} 16... Ne5 {[%clk 0:01:34]} 17. Rh4 {[%clk 0:01:12.5]} 17...
Nxc4 {[%clk 0:01:01.6]} 18. Bxc4 {[%clk 0:01:10.5]} 18... Qc5 {[%clk 0:00:59.3]}
19. b3 {[%clk 0:00:37.3]} 19... d5 {[%clk 0:00:45.7]} 20. Kb2 {[%clk 0:00:30.1]}
20... dxc4 {[%clk 0:00:43.1]} 21. Rc1 {[%clk 0:00:30.7]} 21... Qa5 {[%clk
0:00:38.9]} 22. Rxc4 {[%clk 0:00:30.2]} 22... Qd2+ {[%clk 0:00:35.8]} 23. Nc2
{[%clk 0:00:30.3]} 23... Rd3 {[%clk 0:00:18.2]} 24. Qxc7# {[%clk 0:00:29.9]} 1-0

[Event "*** Titled Tuesday Blitz"]
[Site "Chess.com"]
[Date "2020.03.03"]
[Round "4"]
[White "FairChess_on_YouTube"]
[Black "GianmarcoVaR"]
[Result "1-0"]
[WhiteElo "3040"]
[BlackElo "2556"]
[TimeControl "180+1"]
[EndTime "9:41:05 PST"]
[Termination "FairChess_on_YouTube won by resignation"]

1. e4 {[%clk 0:03:00.9]} 1... c6 {[%clk 0:02:59.6]} 2. Nc3 {[%clk 0:02:59.2]}
2... d5 {[%clk 0:03:00]} 3. Nf3 {[%clk 0:02:59.8]} 3... Bg4 {[%clk 0:02:59.2]}
4. h3 {[%clk 0:02:58.4]} 4... Bxf3 {[%clk 0:02:59.6]} 5. Qxf3 {[%clk 0:02:59.3]}
5... e6 {[%clk 0:02:52.4]} 6. g3 {[%clk 0:02:55.5]} 6... Nf6 {[%clk 0:02:52]} 7.
Bg2 {[%clk 0:02:55.5]} 7... Nxe4 {[%clk 0:02:45.4]} 8. Nxe4 {[%clk 0:02:54.8]}
8... dxe4 {[%clk 0:02:46]} 9. Qxe4 {[%clk 0:02:55.3]} 9... Qd5 {[%clk
0:02:44.8]} 10. Qxd5 {[%clk 0:02:53.3]} 10... cxd5 {[%clk 0:02:44.6]} 11. c4
{[%clk 0:02:53.1]} 11... Nc6 {[%clk 0:02:41.5]} 12. cxd5 {[%clk 0:02:53.2]}
12... Nb4 {[%clk 0:02:41.6]} 13. Ke2 {[%clk 0:02:33.3]} 13... Nxd5 {[%clk
0:02:41.3]} 14. Bxd5 {[%clk 0:02:33.1]} 14... exd5 {[%clk 0:02:41.5]} 15. b3
{[%clk 0:02:33.5]} 15... Kd7 {[%clk 0:02:29]} 16. Bb2 {[%clk 0:02:33.1]} 16...
f6 {[%clk 0:02:25.9]} 17. g4 {[%clk 0:02:33.2]} 17... Bd6 {[%clk 0:02:24.5]} 18.
Kd3 {[%clk 0:02:32.2]} 18... Be5 {[%clk 0:02:22.5]} 19. Bc3 {[%clk 0:02:26.9]}
19... h5 {[%clk 0:02:10.4]} 20. Rae1 {[%clk 0:02:14.4]} 20... Rae8 {[%clk
0:02:04.2]} 21. f3 {[%clk 0:02:09.7]} 21... h4 {[%clk 0:01:35.5]} 22. Re2 {[%clk
0:01:59]} 22... Bg3 {[%clk 0:01:32.9]} 23. Bd4 {[%clk 0:01:48.8]} 23... Rxe2
{[%clk 0:01:31.5]} 24. Kxe2 {[%clk 0:01:49.7]} 24... Rc8 {[%clk 0:01:30.2]} 25.
Kd3 {[%clk 0:01:48.5]} 25... b6 {[%clk 0:01:25.9]} 26. Rf1 {[%clk 0:01:48.4]}
26... Be5 {[%clk 0:00:56.3]} 27. Be3 {[%clk 0:01:48.1]} 27... f5 {[%clk
0:00:44.7]} 28. f4 {[%clk 0:01:45.1]} 28... Bf6 {[%clk 0:00:37.7]} 29. gxf5
{[%clk 0:01:42.8]} 29... Rh8 {[%clk 0:00:37.6]} 30. Rg1 {[%clk 0:01:22.5]} 30...
Rh5 {[%clk 0:00:37.7]} 31. Bd4 {[%clk 0:01:16.8]} 31... Rxf5 {[%clk 0:00:38.2]}
32. Bxf6 {[%clk 0:01:16.3]} 32... gxf6 {[%clk 0:00:38.8]} 33. Ke3 {[%clk
0:01:10.4]} 33... a5 {[%clk 0:00:28.2]} 34. Rg7+ {[%clk 0:01:08.1]} 34... Kd6
{[%clk 0:00:23.6]} 35. Rh7 {[%clk 0:01:08]} 35... a4 {[%clk 0:00:23.1]} 36. d4
{[%clk 0:01:06.7]} 36... axb3 {[%clk 0:00:15.2]} 37. axb3 {[%clk 0:01:07.6]}
37... Kc6 {[%clk 0:00:11.5]} 38. Kf3 {[%clk 0:01:07.5]} 38... Rh5 {[%clk
0:00:09]} 39. Rxh5 {[%clk 0:01:06.7]} 1-0